bitfinex/quotes_SOLUSD_20251013
["timestamp","ask_amount","ask_price","bid_price","bid_amount"]
[1760330647175,10.98125703,195.91,195.85,81.09000001]
[1760330647357,20.8,195.88,195.85,81.09000001]
[1760330647562,26.34184687,195.91,195.86,0.69]
[1760330647761,5.21302244,195.87,195.86,0.69]
[1760330648069,16.08949765,195.87,195.86,80.4]
[1760330650173,18.75852066,195.87,195.86,80.4]
[1760330654775,19.45852066,195.87,195.86,28.54136479]
[1760330654975,18.75852066,195.87,195.86,28.54136479]
[1760330657160,19.45852066,195.87,195.86,0.46251037]
[1760330657381,18.75852066,195.87,195.86,0.46251037]
[1760330658572,20.80722869,195.87,195.86,0.46251037]
[1760330658764,18.75852066,195.87,195.86,0.46251037]
[1760330659166,18.75852066,195.87,195.86,1.11251037]
[1760330659590,7.88204545,195.87,195.86,81.51251037]
[1760330662506,0.10452026,195.88,195.87,77.62338161]
[1760330662666,0.10452026,195.88,195.87,78.27338161]
[1760330662989,20.90452026,195.88,195.87,78.27338161]
[1760330663684,0.10452026,195.88,195.87,78.27338161]
[1760330663995,20.90452026,195.88,195.87,78.27338161]
[1760330664786,0.10452026,195.88,195.87,78.27338161]
[1760330664967,20.90452026,195.88,195.87,78.27338161]
[1760330665482,26.00968668,195.88,195.87,78.27338161]
[1760330667892,26.1189181,195.88,195.87,0.65]
[1760330669198,26.01439784,195.88,195.87,0.65]
[1760330670069,10.87647521,195.87,195.86,0.46251037]
[1760330670310,11.57647521,195.87,195.86,0.46251037]
[1760330670476,16.68190227,195.87,195.86,0.46251037]
[1760330670975,16.68190227,195.87,195.86,1e-08]
[1760330671395,36.68190226,195.87,195.86,1e-08]
[1760330671996,16.68190227,195.87,195.86,1e-08]
[1760330672307,36.68190226,195.87,195.86,1e-08]
[1760330673600,18.73071523,195.87,195.86,1e-08]
[1760330674296,15.98190227,195.87,195.86,1e-08]
[1760330674689,18.03050537,195.87,195.86,1e-08]
[1760330675089,15.98190227,195.87,195.86,1e-08]
[1760330678099,15.98190227,195.87,195.86,0.65000001]
[1760330678100,5.10542706,195.87,195.86,0.65000001]
[1760330678303,0.10923142,195.88,195.86,0.65000001]
[1760330678505,20.8,195.87,195.86,0.65000001]
[1760330678691,0.10923142,195.88,195.86,0.65000001]
[1760330679012,20.90923142,195.88,195.86,0.65000001]
[1760330679387,26.01443318,195.88,195.86,0.65000001]
[1760330680705,0.10923142,195.88,195.86,0.65000001]
[1760330681088,20.8,195.87,195.86,0.65000001]
[1760330683417,0.10923142,195.88,195.87,80.4]
[1760330683589,0.10923142,195.88,195.87,81.06]
[1760330683989,0.10923142,195.88,195.87,215.16]
[1760330684207,20.90923142,195.88,195.87,215.16]
[1760330686505,0.10536125,195.9,195.87,5.76542706]
[1760330686826,0.09497101,195.92,195.89,3.01010849]
[1760330687124,0.09497101,195.92,195.88,134.82]
[1760330687425,0.09497101,195.92,195.89,0.72]
[1760330687796,0.09189738,195.9,195.89,3.73010849]
[1760330687997,0.09189738,195.9,195.89,0.72]
[1760330688520,0.09189738,195.9,195.89,5.82490581]
[1760330689216,0.09189738,195.9,195.89,8.8350143]
[1760330691229,0.09189738,195.9,195.89,5.82490581]
[1760330691726,20.90369145,195.98,195.97,74.47442432]
[1760330692734,26.00625293,195.98,195.97,74.47442432]
[1760330693550,0.10369145,195.98,195.97,208.57442432]
[1760330693842,0.10369145,195.98,195.97,213.67724618]
[1760330694015,0.10369145,195.98,195.97,208.57442432]
[1760330695615,0.10369145,195.98,195.85,1e-08]
[1760330695616,5.89625293,195.98,195.85,1e-08]
[1760330695928,20.8,195.95,195.85,1e-08]
[1760330696240,20.8,195.95,195.86,5.10545911]
[1760330696866,20.8,195.91,195.86,1e-08]
[1760330697234,0.69,195.9,195.86,1e-08]
[1760330697428,21.49,195.91,195.86,1e-08]
[1760330697822,20.8,195.91,195.86,1e-08]
[1760330698642,20.8,195.91,195.87,0.72]
[1760330698816,20.8,195.94,195.87,0.72]
[1760330699742,20.8,195.92,195.88,5.10516642]
[1760330701443,0.10369145,195.98,195.89,3.73010849]
[1760330701852,0.10369145,195.98,195.9,5.10464522]
[1760330701853,26.00632801,195.98,195.9,5.10464522]
[1760330702039,20.8,195.96,195.9,17.86625828]
[1760330702352,20.8,195.96,195.9,20.87636677]
[1760330702758,20.8,195.96,195.9,17.86625828]
[1760330703049,26.0063273,195.98,195.9,20.87636677]
[1760330703250,26.0063273,195.98,195.9,17.86625828]
[1760330703755,5.79303994,195.97,195.9,219.60464522]
[1760330705560,25.90326846,195.96,195.9,219.60464522]
[1760330706458,20.8,195.96,195.9,219.60464522]
[1760330706752,20.8,195.96,195.9,222.61475371]
[1760330707353,5.20625526,195.98,195.9,236.09636677]
[1760330707540,0.10369145,195.98,195.92,3.01010849]
[1760330707742,0.10369145,195.98,195.93,0.72]
[1760330707946,0.09478805,195.94,195.93,214.5]
[1760330708260,0.20092364,195.98,195.97,80.00390577]
[1760330708636,5.99348512,195.98,195.97,80.00390577]
[1760330708836,5.99348512,195.98,195.97,79.28390577]
[1760330709339,5.88979367,195.98,195.97,79.28390577]
[1760330709831,16.76626888,195.98,195.97,79.28390577]
[1760330710027,20.8,195.94,195.93,79.28390577]
[1760330710231,21.49,195.94,195.93,79.28390577]
[1760330710836,0.69,195.94,195.93,79.28390577]
[1760330711838,5.10360314,195.94,195.93,79.28390577]
[1760330712046,10.9737074,195.98,195.93,79.28390577]
[1760330712248,20.8,195.94,195.93,79.28390577]
[1760330714037,0.09723219,195.98,195.93,64.29771792]
[1760330714363,0.09723219,195.98,195.94,0.71]
[1760330715160,0.09723219,195.98,195.95,0.71]
[1760330715330,0.68,195.97,195.87,203.46038098]
[1760330715689,0.68,195.97,195.88,0.71]
[1760330716191,20.8,195.93,195.89,5.10490581]
[1760330716366,20.8,195.93,195.9,0.71]
[1760330716687,20.8,195.94,195.91,0.71]
[1760330717084,20.8,195.94,195.92,0.71]
[1760330717258,0.09723219,195.98,195.92,0.71]
[1760330717463,20.89723219,195.98,195.92,0.71]
[1760330717980,20.8,195.96,195.92,0.71]
[1760330718182,0.09723219,195.98,195.93,5.10386362]
[1760330718403,0.09723219,195.98,195.96,4.6959501]
[1760330718565,0.09723219,195.98,195.96,197.27985587]
[1760330718764,0.09723219,195.98,195.97,0.71]
[1760330719069,20.8,195.95,195.89,0.71]
[1760330719267,21.48,195.95,195.88,0.71]
[1760330719667,20.89723219,195.98,195.88,0.71]
[1760330719880,20.8,195.96,195.88,5.4059501]
[1760330720075,5.19981384,195.98,195.9,5.10464522]
[1760330720390,20.8,195.95,195.89,0.71]
[1760330722186,0.68,195.94,195.85,1e-08]
[1760330722494,0.68,195.94,195.85,0.71000001]
[1760330724190,20.8,195.9,195.85,5.8159292]
[1760330724387,20.8,195.9,195.86,0.71]
[1760330724890,20.8,195.9,195.87,0.71]
[1760330725364,20.8,195.91,195.87,0.71]
[1760330726273,5.10420702,195.92,195.85,1e-08]
[1760330726274,20.8,195.89,195.85,1e-08]
[1760330726598,20.8,195.89,195.85,58.48390578]
[1760330726773,0.68,195.88,195.85,58.48390578]
[1760330727190,5.10542706,195.87,195.85,1e-08]
[1760330727391,20.8,195.86,195.85,1e-08]
[1760330727998,20.90991111,195.86,195.85,1e-08]
[1760330728376,0.10991111,195.86,195.85,1e-08]
[1760330728604,0.78991111,195.86,195.85,1e-08]
[1760330728974,20.90991111,195.86,195.85,1e-08]
[1760330729695,0.10991111,195.86,195.85,1e-08]
[1760330730080,5.21559884,195.86,195.85,1e-08]
[1760330730606,0.10991111,195.86,195.85,1e-08]
[1760330730894,0.10991111,195.86,195.85,0.71000001]
[1760330730895,20.90991111,195.86,195.85,0.71000001]
[1760330731077,26.01559884,195.86,195.85,1e-08]
[1760330731688,20.90991111,195.86,195.85,1e-08]
[1760330732687,0.10991111,195.86,195.85,5.40595011]
[1760330733597,0.10991111,195.86,195.85,10.51189853]
[1760330735380,0.10991111,195.86,195.85,5.81594843]
[1760330737101,1e-08,195.86,195.85,21.38837374]
[1760330737283,0.10620761,195.88,195.86,10.87647521]
[1760330737484,2.04682103,196.02,195.88,10.87647521]
[1760330737791,0.68,196.02,195.9,15.57242531]
[1760330737991,0.68,196.02,195.91,4.6959501]
[1760330738299,0.68,196.02,195.91,5.4059501]
[1760330739290,20.8,195.99,195.91,21.38680997]
[1760330739491,2.66655732,196.03,195.91,16.69085987]
[1760330739492,5.78182163,196.01,195.91,16.69085987]
[1760330739705,7.76781959,196.03,195.91,21.38680997]
[1760330740005,20.8,196.0,195.91,21.38680997]
[1760330740186,8.44781959,196.03,195.91,21.38680997]
[1760330740504,20.8,196.0,195.91,21.38680997]
[1760330740682,0.68,196.02,195.91,16.69085987]
[1760330740884,0.68,196.02,195.91,21.38680997]
[1760330741084,5.78154513,196.02,195.91,21.38680997]
[1760330741286,20.8,195.99,195.91,21.38680997]
[1760330741793,20.8,195.99,195.91,16.69085987]
[1760330741999,1e-08,195.92,195.91,21.38680997]
[1760330743507,2.66655732,196.03,195.92,5.10412413]
[1760330743720,1e-08,195.95,195.94,15.57242531]
[1760330744088,0.76,196.07,195.95,10.87647521]
[1760330744298,0.76,196.07,196.01,4.6959501]
[1760330744489,0.1,196.07,196.01,4.6959501]
[1760330744812,0.1,196.07,196.02,4.6959501]
[1760330745012,0.1,196.07,196.04,4.6959501]
[1760330745197,0.1,196.07,196.05,4.6959501]
[1760330745513,0.1,196.07,196.06,4.6959501]
[1760330745918,0.1,196.07,196.05,4.6959501]
[1760330746296,0.1,196.07,196.05,5.4059501]
[1760330746491,0.1,196.07,196.05,4.6959501]
[1760330746696,0.1,196.07,196.04,17.85349927]
[1760330746697,0.1,196.07,196.04,22.54944937]
[1760330747004,0.1,196.07,196.04,23.25944937]
[1760330747712,0.1,196.07,196.04,29.73497672]
[1760330748015,0.10396564,196.05,196.04,29.43997448]
[1760330749516,0.10396564,196.05,196.02,10.87647521]
[1760330749994,0.10396564,196.05,196.03,5.10126001]
[1760330751213,0.10396564,196.05,196.01,5.10158157]
[1760330751214,0.69,196.04,196.01,5.10158157]
[1760330751413,0.69,196.03,195.99,5.102067]
[1760330751712,20.90396564,196.05,196.0,0.71]
[1760330751903,0.10396564,196.05,196.0,0.71]
[1760330752514,0.10396564,196.05,196.02,10.87647521]
[1760330752706,0.10396564,196.05,196.04,10.87647521]
[1760330752904,0.10396564,196.05,196.04,22.04795266]
[1760330753108,0.10396564,196.05,196.04,27.85895245]
[1760330753310,0.10396564,196.05,196.04,16.687475]
[1760330753700,0.10396564,196.05,196.04,15.977475]
[1760330754525,0.10396564,196.05,196.04,5.10099979]
[1760330755102,0.10396564,196.05,196.02,12.7535209]
[1760330755310,0.10396564,196.05,196.03,0.71]
[1760330756116,0.79396564,196.05,196.01,5.10178052]
[1760330756315,0.10396564,196.05,196.01,17.85623182]
[1760330756521,0.10396564,196.05,196.02,0.71]
[1760330756722,0.10396564,196.05,196.03,22.75795266]
[1760330756925,0.10396564,196.05,196.03,11.58647521]
[1760330757228,0.10396564,196.05,196.04,5.10099979]
[1760330758933,0.10396564,196.05,196.03,5.10126001]
[1760330759140,0.10396564,196.05,196.04,22.75795266]
[1760330759321,0.10396564,196.05,196.04,11.58647521]
[1760330759927,0.10396564,196.05,196.04,22.75795266]
[1760330760139,0.10396564,196.05,196.04,11.58647521]
[1760330760513,0.10396564,196.05,196.04,16.687475]
[1760330760828,0.10396564,196.05,196.04,5.81099979]
[1760330761021,0.10396564,196.05,196.04,27.85895245]
[1760330761526,1e-08,196.05,196.04,27.85895245]
[1760330761936,1e-08,196.06,196.05,31.67647521]
[1760330762110,1e-08,196.08,196.07,31.67647521]
[1760330762428,0.69,196.17,196.09,5.09969911]
[1760330762930,0.69,196.17,196.09,5.80969911]
[1760330763128,0.89274394,196.12,196.09,5.09969911]
[1760330763315,0.78393534,196.1,196.08,5.09995765]
[1760330763722,0.09393534,196.1,196.08,5.09995765]
[1760330765226,0.09393534,196.1,196.07,17.85047254]
[1760330765420,0.09393534,196.1,196.07,5.1002193]
[1760330765620,0.69,196.09,196.07,214.5]
[1760330765831,0.09393534,196.1,196.07,214.5]
[1760330765832,0.69,196.08,196.07,214.5]
[1760330767911,0.10589314,196.08,196.07,220.3102193]
[1760330768841,5.09751469,196.18,196.16,78.01352078]
[1760330769042,12.7413538,196.22,196.09,11.17147745]
[1760330769246,20.8,196.19,196.09,223.28499823]
[1760330769444,17.95310896,196.17,196.08,212.11352078]
[1760330769650,20.8,196.13,196.03,212.11352078]
[1760330769855,20.8,196.09,196.01,5.10154424]
[1760330770145,20.8,196.09,196.0,213.82352078]
[1760330770146,20.8,196.09,196.0,1.0]
[1760330770917,0.43,196.08,196.0,1.0]
[1760330771120,0.43,196.07,196.0,1.0]
[1760330771337,5.1007396,196.05,196.0,1.0]
[1760330771725,20.8,196.06,196.0,1.0]
[1760330771726,0.43,196.04,196.0,1.0]
[1760330771935,20.8,196.07,196.01,0.71]
[1760330772143,20.8,196.06,196.01,0.71]
[1760330772335,20.8,196.06,196.02,0.71]
[1760330772537,20.8,196.06,196.0,6.10191185]
[1760330773241,20.8,196.07,196.0,18.85701389]
[1760330773633,20.8,196.07,196.0,1.0]
[1760330773838,0.43,196.06,196.0,1.0]
[1760330774022,0.43,196.06,196.0,6.10203742]
[1760330775337,5.53052148,196.06,196.0,6.10203742]
[1760330775727,0.43,196.06,196.0,6.10203742]
[1760330776363,5.53052522,196.06,196.0,6.10203742]
[1760330776745,0.43,196.05,196.0,6.10203742]
[1760330776963,0.43,196.04,196.0,6.10203742]
[1760330777668,21.23,196.07,196.0,6.10203742]
[1760330777836,26.33022889,196.07,196.0,6.10203742]
[1760330778030,20.8,196.1,196.01,0.67]
[1760330778256,0.43,196.11,196.01,220.29013529]
[1760330778445,0.43,196.11,196.02,0.67]
[1760330778653,0.43,196.14,196.03,18.38308972]
[1760330778845,0.43,196.13,196.04,0.67]
[1760330779046,20.8,196.12,196.04,0.67]
[1760330779660,0.43,196.13,196.04,0.67]
[1760330779866,20.8,196.1,196.05,5.1007396]
[1760330780153,20.8,196.1,196.06,0.67]
[1760330781362,20.8,196.1,196.06,5.77026175]
[1760330781738,25.89902579,196.12,196.06,5.77026175]
[1760330782753,0.43,196.13,196.06,5.77026175]
[1760330782965,20.8,196.1,196.06,5.77026175]
[1760330783192,5.20920365,196.17,196.07,8.17661451]
[1760330783348,5.20920365,196.17,196.06,12.75119861]
[1760330783349,0.11141328,196.17,196.09,18.38308972]
[1760330783659,0.11141328,196.17,196.1,8.17661451]
[1760330783873,0.11141328,196.17,196.1,0.67]
[1760330784048,0.43,196.16,196.08,151.9498572]
[1760330784254,0.43,196.16,196.08,139.1999592]
[1760330785358,20.8,196.12,196.08,139.8699592]
[1760330785554,20.8,196.12,196.09,0.67]
[1760330786072,20.8,196.12,196.05,5.7707396]
[1760330786248,0.43,196.11,196.03,5.77106302]
[1760330786648,20.8,196.12,196.04,0.67]
[1760330786975,10.87647521,196.07,196.0,1.0]
[1760330787159,20.8,196.04,196.0,1.0]
[1760330787366,26.33120624,196.04,196.0,1.0]
[1760330787542,0.43,196.03,196.0,1.0]
[1760330787749,0.43,196.02,196.0,1.0]
[1760330787940,0.10185869,196.01,196.0,1.0]
[1760330789550,20.90185869,196.01,196.0,1.0]
[1760330790566,5.63363921,196.01,196.0,1.0]
[1760330790804,16.51011442,196.01,196.0,1.0]
[1760330792690,39.97750878,196.01,196.0,1.0]
[1760330792893,19.17750878,196.01,196.0,1.0]
[1760330794178,19.17750878,196.01,196.0,1e-08]
[1760330795995,39.17750877,196.01,196.0,1e-08]
[1760330797287,31.67647521,195.91,195.86,4.9]
[1760330797486,20.8,195.91,195.87,0.67]
[1760330797888,10.87647521,195.96,195.87,0.67]
[1760330797889,20.8,195.93,195.87,0.67]
[1760330798092,25.9040885,195.93,195.87,0.67]
[1760330798590,25.9040885,195.93,195.87,5.77532657]
[1760330798907,25.9040885,195.93,195.88,0.67]
[1760330799414,25.9040885,195.93,195.89,0.67]
[1760330799608,25.9040885,195.93,195.85,5.105756]
[1760330799784,25.9040885,195.93,195.89,0.67]
[1760330800490,20.8,195.93,195.9,0.67]
[1760330800690,20.8,195.91,195.86,5.10544748]
[1760330801098,20.8,195.91,195.87,0.67]
[1760330801705,25.90388898,195.93,195.87,0.67]
[1760330804612,20.8,195.96,195.87,83.78890842]
[1760330804801,25.90320601,195.96,195.88,0.7]
[1760330806405,25.90320601,195.96,195.89,5.10490581]
[1760330806606,25.90320601,195.96,195.9,0.7]
[1760330807698,39.09091166,195.96,195.87,0.7]
[1760330807914,0.10799201,195.91,195.87,0.7]
[1760330808236,0.10604049,195.92,195.89,7.50661451]
[1760330808395,0.10604049,195.92,195.9,0.7]
[1760330810017,0.10604049,195.92,195.91,12.61099917]
[1760330810211,0.11043431,195.93,195.92,18.38308972]
[1760330810413,0.11043431,195.93,195.92,19.08308972]
[1760330810710,0.10265855,195.94,195.92,11.57647521]
[1760330810931,0.10265855,195.94,195.93,8.20661451]
[1760330811639,0.10265855,195.94,195.93,0.7]
[1760330812014,0.10265855,195.94,195.93,5.80386362]
[1760330812534,0.10265855,195.94,195.93,0.7]
[1760330813248,0.10265855,195.94,195.92,5.10408112]
[1760330813628,0.10265855,195.94,195.93,0.7]
[1760330814013,0.10265855,195.94,195.93,5.80386362]
[1760330814539,0.10265855,195.94,195.91,5.10435553]
[1760330814720,0.10265855,195.94,195.91,5.80435553]
[1760330815033,0.10265855,195.94,195.92,0.7]
[1760330816237,0.10265855,195.94,195.93,5.10386362]
[1760330816433,0.10265855,195.94,195.93,5.80386362]
[1760330817834,0.64265855,195.94,195.81,0.2]
[1760330818019,20.90265855,195.94,195.88,0.7]
[1760330818215,20.8,195.93,195.88,0.7]
[1760330818912,5.20626691,195.94,195.88,0.7]
[1760330819316,26.54626691,195.94,195.86,0.7]
[1760330820334,21.44265855,195.94,195.87,5.10542706]
[1760330820722,20.8,195.91,195.86,5.80567002]
[1760330820915,20.8,195.91,195.86,5.10567002]
[1760330821132,20.8,195.91,195.86,5.80567002]
[1760330821326,21.34,195.91,195.85,1e-08]
[1760330821723,21.34,195.91,195.85,5.10594517]
[1760330822042,20.8,195.91,195.85,5.80594517]
[1760330822627,0.54,195.93,195.85,17.87081624]
[1760330822936,0.10265855,195.94,195.86,0.7]
[1760330823143,20.8,195.92,195.86,0.7]
[1760330824246,20.8,195.92,195.87,5.10542706]
[1760330824570,21.34,195.91,195.85,1e-08]
[1760330824860,21.34,195.91,195.85,134.10000001]
[1760330825023,20.8,195.91,195.85,134.10000001]
[1760330825339,0.54,195.9,195.85,134.10000001]
[1760330825514,0.54,195.9,195.85,1e-08]
[1760330825718,0.54,195.89,195.85,1e-08]
[1760330826140,0.54,195.88,195.85,1e-08]
[1760330826543,21.34,195.88,195.85,1e-08]
[1760330827044,26.44517372,195.88,195.85,1e-08]
[1760330827833,0.09899464,195.86,195.85,1e-08]
[1760330828749,0.63899464,195.86,195.85,1e-08]
[1760330828925,5.74468237,195.86,195.85,1e-08]
[1760330830261,16.62115758,195.86,195.85,1e-08]
[1760330831717,5.74468237,195.86,195.85,1e-08]
[1760330835259,0.09899464,195.86,195.85,1e-08]
[1760330835552,5.20468237,195.86,195.85,1e-08]
[1760330835736,0.09899464,195.86,195.85,1e-08]
[1760330835920,0.09899464,195.86,195.85,0.72000001]
[1760330836115,0.09899464,195.86,195.85,1e-08]
[1760330836350,26.54468237,195.86,195.85,1e-08]
[1760330836558,5.74468237,195.86,195.85,1e-08]
[1760330837123,26.54468237,195.86,195.85,1e-08]
[1760330837323,16.62115758,195.86,195.85,1e-08]
[1760330840255,37.42115758,195.86,195.85,1e-08]
[1760330840453,16.62115758,195.86,195.85,1e-08]
[1760330841049,40.09081051,195.86,195.85,1e-08]
[1760330841238,19.29081051,195.86,195.85,1e-08]
[1760330841925,18.75081051,195.86,195.85,1e-08]
[1760330842353,2.76864757,195.86,195.85,0.72000001]
[1760330842540,0.09899464,195.86,195.85,0.72000001]
[1760330842726,0.09899464,195.86,195.85,1e-08]
[1760330842926,36.88115758,195.86,195.85,1e-08]
[1760330843152,37.42115758,195.86,195.85,1e-08]
[1760330844551,36.88115758,195.86,195.85,1e-08]
[1760330846332,0.09899464,195.86,195.85,0.72000001]
[1760330847946,0.19187804,195.86,195.85,0.72000001]
[1760330848340,16.17404098,195.86,195.85,1e-08]
[1760330848751,20.99187804,195.86,195.85,0.72000001]
[1760330849264,25.99857113,195.86,195.85,0.72000001]
[1760330849563,20.8928834,195.86,195.85,0.72000001]
[1760330849749,25.99857113,195.86,195.85,1e-08]
[1760330849953,25.99857113,195.86,195.85,0.72000001]
[1760330851652,36.87504634,195.86,195.85,1e-08]
[1760330852648,25.99857113,195.86,195.85,1e-08]
[1760330852850,20.8928834,195.86,195.85,0.72000001]
[1760330853044,0.0928834,195.86,195.85,0.72000001]
[1760330853445,5.19857113,195.86,195.85,1e-08]
[1760330853776,16.07504634,195.86,195.85,1e-08]
[1760330854758,5.19857113,195.86,195.85,1e-08]
[1760330855060,0.0928834,195.86,195.85,0.72000001]
[1760330855266,0.0932165,195.87,195.85,0.72000001]
[1760330855654,0.0932165,195.87,195.85,5.82581337]
[1760330855855,0.0932165,195.87,195.86,0.72]
[1760330857671,0.0932165,195.87,195.86,5.82568773]
[1760330859341,0.0932165,195.87,195.86,0.72]
[1760330859839,0.0932165,195.87,195.86,5.82568773]
[1760330860669,0.0932165,195.87,195.86,0.72]
[1760330861756,0.0932165,195.87,195.86,5.82568773]
[1760330863476,0.0932165,195.87,195.86,0.72]
[1760330863678,0.0932165,195.87,195.85,1e-08]
[1760330864066,20.8,195.86,195.85,1e-08]
[1760330864652,5.19864765,195.87,195.85,1e-08]
[1760330865077,21.43,195.86,195.85,1e-08]
[1760330865264,32.30647521,195.86,195.85,1e-08]
[1760330865978,37.41216294,195.86,195.85,1e-08]
[1760330866461,25.90568773,195.86,195.85,1e-08]
[1760330867767,0.0932165,195.87,195.85,0.67000001]
[1760330867960,0.11116201,195.86,195.85,0.67000001]
[1760330868154,20.91116201,195.86,195.85,1e-08]
[1760330868355,0.11116201,195.86,195.85,1e-08]
[1760330868770,26.01684974,195.86,195.85,1e-08]
[1760330869080,26.64684974,195.86,195.85,1e-08]
[1760330869384,5.84684974,195.86,195.85,1e-08]
[1760330870175,16.09332495,195.86,195.85,1e-08]
[1760330871678,16.72332495,195.86,195.85,1e-08]
[1760330872055,16.72332495,195.86,195.83,1e-08]
[1760330872056,10.87647521,195.85,195.83,1e-08]
[1760330872364,10.87647521,195.82,195.81,0.2]
[1760330872578,10.87647521,195.82,195.8,0.2]
[1760330872579,10.87647521,195.81,195.8,0.2]
[1760330872762,0.63,195.81,195.8,0.2]
[1760330874159,5.10699147,195.81,195.8,0.2]
[1760330874860,5.73699147,195.81,195.8,0.2]
[1760330875960,5.73699147,195.81,195.8,1e-08]
[1760330879790,5.10699147,195.81,195.8,1e-08]
[1760330881074,5.73699147,195.81,195.8,1e-08]
[1760330882382,5.10699147,195.81,195.8,1e-08]
[1760330882582,15.98346668,195.81,195.8,1e-08]
[1760330883686,16.61346668,195.81,195.8,1e-08]
[1760330883991,15.98346668,195.81,195.8,1e-08]
[1760330884364,5.10699147,195.81,195.8,0.67000001]
[1760330884663,15.9832147,195.82,195.8,0.67000001]
[1760330885785,18.6529355,195.82,195.8,0.67000001]
[1760330885985,18.6529355,195.82,195.8,1e-08]
[1760330886687,0.63,195.81,195.8,1e-08]
[1760330887884,0.10049983,195.81,195.8,0.67000001]
[1760330888094,0.10049983,195.81,195.8,1e-08]
[1760330889779,5.2074913,195.81,195.8,0.67000001]
[1760330893569,5.2074913,195.81,195.8,81.07000001]
[1760330893972,5.2074913,195.81,195.8,80.40000001]
[1760330894380,20.90049983,195.81,195.8,81.10000001]
[1760330894585,0.10049983,195.81,195.8,0.70000001]
[1760330894772,16.08396651,195.81,195.8,1e-08]
[1760330895174,36.88396651,195.81,195.8,1e-08]
[1760330895375,16.71396651,195.81,195.8,1e-08]
[1760330895599,16.08396651,195.81,195.8,1e-08]
[1760330895898,16.08396651,195.81,195.8,0.70000001]
[1760330896405,0.10049983,195.81,195.8,0.70000001]
[1760330896577,2.77287716,195.82,195.8,0.70000001]
[1760330896778,0.10599963,195.83,195.8,5.80710509]
[1760330896984,0.1068463,195.84,195.8,5.80710509]
[1760330896985,0.09568821,195.85,195.81,0.7]
[1760330897607,0.10695924,195.86,195.81,11.91191213]
[1760330897775,0.10695924,195.86,195.82,0.7]
[1760330898292,0.10695924,195.86,195.83,17.87264463]
[1760330898482,0.10695924,195.86,195.84,0.7]
[1760330899700,0.10695924,195.86,195.84,11.91191213]
[1760330899881,0.10695924,195.86,195.85,0.7]
[1760330900276,0.10695924,195.86,195.85,5.80594842]
[1760330900677,0.10695924,195.86,195.85,17.01786055]
[1760330900877,0.10407225,195.89,195.86,10.87647521]
[1760330901089,0.09544352,195.9,195.88,10.87647521]
[1760330901293,0.09544352,195.9,195.89,11.21191213]
[1760330901507,0.09544352,195.9,195.89,11.91191213]
[1760330901676,2.66721057,196.0,195.9,10.87647521]
[1760330901881,2.66721057,196.0,195.91,7.50923968]
[1760330902098,2.66721057,196.0,195.92,8.20923968]
[1760330902286,23.46721057,196.0,195.93,17.86352268]
[1760330902490,23.46721057,196.0,195.94,0.7]
[1760330902690,2.66721057,196.0,195.94,0.7]
[1760330903597,2.66721057,196.0,195.94,8.20923968]
[1760330903902,2.66721057,196.0,195.95,0.7]
[1760330904083,0.1,196.06,195.97,7.50923968]
[1760330904280,0.1,196.06,195.99,7.50923968]
[1760330904495,0.1,196.06,195.99,25.36729365]
[1760330904691,0.1,196.06,196.0,8.20923968]
[1760330905209,0.1,196.06,196.01,0.7]
[1760330905583,0.69,196.05,195.98,0.7]
[1760330905817,20.8,196.03,195.97,0.7]
[1760330906188,21.49,196.03,195.95,0.7]
[1760330906414,20.8,196.0,195.95,5.80320765]
[1760330906601,20.8,196.0,195.96,0.7]
[1760330906788,20.8,196.0,195.92,5.80394248]
[1760330907084,0.69,196.02,195.93,0.7]
[1760330907291,20.8,196.0,195.93,0.7]
[1760330908011,0.10821799,195.94,195.93,0.7]
[1760330909806,0.10821799,195.94,195.93,8.20923968]
[1760330910109,0.10000702,195.96,195.94,15.98007835]
[1760330910301,0.10986975,195.97,195.94,18.56261099]
[1760330910484,0.09305491,195.98,195.97,10.87647521]
[1760330910689,0.09305491,195.98,195.97,7.50923968]
[1760330911010,0.09305491,195.98,195.97,8.20923968]